Workbook

Sheet Sheet1
A1: AREA | B1: Share Less | D1: SQUARE | E1: TYPE | F1: TYPE | G1: LEASE | H1: MONTHLY RENT | I1: ANNUAL RENT | J1: RENT PER | K1: ESCALATIONS/
A2: LEASED | B2: WNT | C2: TENANT NAME | D2: FOOTAGE | E2: SPACE | F2: LEASE | G2: TERM | H2: & STEP-UPS | I2: & STEP-UPS | J2: SQ. FT. | K2: PASS-THRUS | L2: OPTIONS
A3: =D3/37372 -> 0.04013700096 | B3: =D3/$D$62 -> 0.04711795194 | C3: Noah Nails Inc. | D3: 1500 | E3: Retail | F3: NNN | G3: 7/1/20-6/30/25 | H3: 1750 | I3: =H3*12 -> 21000 | J3: 14 | K3: proportionate share | L3: None
C4: Sarah | G4: 7/1/25-6/30/30 | H4: 2000 | I4: =H4*12 -> 24000 | J4: =SUM(I4/D3) -> 16 | K4: RE Tax and Expenses
C5: 859148856@qq.com | G5: 7/01/30-6/30/35 | H5: 2250 | I5: =H5*12 -> 27000 | J5: =SUM(I5/D3) -> 18
C6: 860-436-5774
A8: =D8/37372 -> 0.03210960077 | B8: =D8/D62 -> 0.03769436155 | C8: Swan Vision LLC | D8: 1200 | E8: Retail | F8: NNN | G8: 8/9/18-8/31/23 | H8: 1600 | I8: =H8*12 -> 19200 | J8: =I8/D8 -> 16 | K8: proportionate share | L8: (1) 5 year at 1,936 per month
C9: Edmund Swan | G9: 9/1/23-8/31/28 | H9: 1760 | I9: =H9*12 -> 21120 | J9: =I9/D8 -> 17.6 | K9: RE tax and Expenses
C10: 857-272-3781
C11: Edmundswan@gmail.com
C13: Sola Rocky Hill Town Line, LLC | D13: 6265 | E13: Retail | F13: NNN | G13: 6/10/2020-6/9/2025 | H13: 6787.08 | I13: =H13*12 -> 81444.96 | J13: =I13/D13 -> 12.99999362 | K13: proportionate share | L13: (3) 5 year options
C14: Thomas Kuczmarski | G14: 6/10/2025-6/9/2030 | H14: 7465.79 | I14: =H14*12 -> 89589.48 | J14: =I14/D13 -> 14.29999681 | K14: RE tax and Expenses
C15: 203-445-3151
C16: tom@solasalons.com
A17: =#REF!/37372 ->  | B17: =#REF!/D62 -> 
C18: JMCT 13-4 LLC | D18: 2560 | E18: Retail | F18: NNN | G18: 9/24/21-9/24/26 | H18: =I18/12 -> 2986.666667 | I18: =D18*J18 -> 35840 | J18: 14 | K18: proportionate share | L18: (2) 5 year options
C19: Jersey Mike's | G19: 9/25/26-9/24/31 | H19: =I19/12 -> 3285.333333 | I19: =J19*D18 -> 39424 | J19: 15.4 | K19: RE tax and Expenses | L19: 10% increase each
C20: Ken Schanke
C21: ken@merakict.com
C22: 203-843-0909
C24: VK Spirits | D24: 6380 | E24: Retail | F24: NNN | G24: 1/1/24-12/31/24 | H24: 6376 | I24: =H24*12 -> 76512 | J24: =I24/D24 -> 11.99247649 | K24: Proportionate share
C25: Ritesh Kapadia | G25: 1/1/25-12/31/29 | H25: 5848.34 | I25: =H25*12 -> 70180.08 | J25: =SUM(I25/D24) -> 11.00001254 | K25: RE tax and Expenses
C26: rkapadia612@gmail.com | G26: 1/1/29-12/31/34 | H26: 6376 | I26: =H26*12 -> 76512 | J26: =SUM(I26/D24) -> 11.99247649
C27: 203-545-6356
A29: =D24/D61 -> 0.1715192085 | B29: =D24/D62 -> 0.2004083556
C33: Humza Yusuf LLC | D33: 1820 | E33: Retail | F33: NNN | G33: 12/1/12-11/30/17 | H33: =I33/12 -> 2123.333333 | I33: 25480 | J33: =I33/D33 -> 14 | K33: proportionate share
C34: dba Edible Arrangements | G34: 12/1/17-11/30/22 | H34: 2275 | I34: 27300 | J34: =I34/D33 -> 15 | K34: RE tax and expenses
C35: humzashamoon@yahoo.com | F35: RENT DECREASE | G35: 6/1/19-11/30/22 | H35: 2123.33 | I35: 25480 | J35: 14
C36: zahidashamoon@gmail.com | G36: 12/1/22-11/30/25 | H36: 2123.33 | I36: 25480 | J36: 14
C37: Owner- 860-986-9002 | G37: 12/1/25-11/30/27 | H37: 2275 | I37: 27300 | J37: 15
A38: =D33/D61 -> 0.04892867704 | B38: =D33/D62 -> 0.05716978169 | C38: Store- 860-563-3942
C39: NormaJean Hernandez
C40: ct106@dofruit.com (860-532-9869)
C42: WNTIV, LLC | D42: 5362 | E42: Restaurant | F42: NNN | G42: 3/1/06-2/28/16 | H42: =I42/12 -> 14666.66667 | I42: 176000 | J42: =I42/D42 -> 32.82357329 | K42: 27.52% RE Taxes
C43: Wood N' Tap | G43: 3/1/16-2/28/21 | H43: =I43/12 -> 16133.33333 | I43: 193600 | J43: =I43/5362 -> 36.10593062 | K43: 50% Expenses
C44: denise@wntus.com (handles bills) | G44: 3/1/21-6/30/21 | H44: =H43/2 -> 8066.666667
C45: 860-206-6284 | G45: 7/1/21-2/28/22 | H45: =H43 -> 16133.33333 | I45: =H45*12 -> 193600 | J45: =I45/D42 -> 36.10593062
C46: Mike Hamlin | G46: 3/1/22-2/28/26 | H46: 16940 | I46: =H46*12 -> 203280 | J46: =I46/D42 -> 37.91122715
A47: =D42/D61 -> 0.1441514101 | C47: 860-919-3333 | G47: 3/1/26-2/28/31 | H47: 17787 | I47: =H47*12 -> 213444 | J47: =I47/D42 -> 39.80678851
C48: mhamlin@wntus.com
C50: Town Line Laundry, LLC | D50: 2100 | E50: Retail | F50: NNN | G50: 8/1/14-7/31/19 | H50: =I50/12 -> 3150 | I50: 37800 | J50: =I50/D50 -> 18 | K50: proportionate share
C51: info@sunnysudslaundromat.com | G51: 8/1/19-7/31/24 | H51: =H50 -> 3150 | I51: =I50 -> 37800 | J51: =I51/D50 -> 18 | K51: RE tax and expenses
C52: 860-436-6015 | G52: 8/1/24-7/31/29 | H52: =D50*19/12 -> 3325 | I52: =H52*12 -> 39900 | J52: =I52/D50 -> 19
C53: Cell: 860-682-0654
C55: Town Fair Tire Centers | D55: 10010 | E55: Retail | F55: NNN | G55: 9/30/2002-5/31/18 | H55: =I55/12 -> 10000 | I55: 120000 | J55: =I55/D55 -> 11.98801199 | K55: proportionate share | L55: two 5 year options
A56: =D50/D61 -> 0.05645616582 | B56: =D50/D62 -> 0.06596513272 | C56: Mark Jemison 860-836-8025 | G56: 6/1/18-5/31/2023 | H56: =I56/12 -> 10416.66667 | I56: 125000 | J56: =I56/D55 -> 12.48751249 | K56: RE tax and Expenses
C57: Mjemison@townfair.com | G57: 6/1/23-5/31/28 | H57: =I57/12 -> 10416.66667 | I57: 125000 | J57: 12.49
C58: 203-467-8600 | G58: 6/1/28-5/31/33 | H58: 10833.33 | I58: =SUM(H58*12) -> 129999.96 | J58: =SUM(I58/D55) -> 12.98700899
C59: ktutino@townfair.com
A61: =D55/D61 -> 0.2691077237 | B61: =D55/D62 -> 0.3144337993 | C61: Total: | D61: 37197
C62: Total Less WNT: | D62: =D61-5362 -> 31835
A68: =SUM(A3:A61) ->  | B68: =SUM(B3:B62) -> 
